bitfinex/quotes_BTCUSD_20260125
["timestamp","ask_amount","ask_price","bid_price","bid_amount"]
[1769378829718,1.13043865,86377.0,86366.0,0.00014191]
[1769378829845,0.01157648,86382.0,86366.0,0.00014191]
[1769378829846,1.34512289,86375.0,86366.0,0.00014191]
[1769378831004,1.34512289,86375.0,86365.0,0.04042191]
[1769378831178,1.34526462,86375.0,86365.0,0.04042191]
[1769378831407,1.34526462,86375.0,86363.0,0.0002329]
[1769378831549,0.21468424,86374.0,86363.0,0.0002329]
[1769378831755,1.13043865,86371.0,86363.0,0.0002329]
[1769378832266,1.13043865,86371.0,86365.0,0.001]
[1769378832618,0.00014173,86375.0,86363.0,0.01181193]
[1769378832619,0.00014173,86375.0,86366.0,0.01157863]
[1769378832818,0.00014173,86375.0,86365.0,0.01157876]
[1769378833472,0.00014173,86375.0,86366.0,0.01157863]
[1769378833623,1.13043865,86374.0,86366.0,0.01157863]
[1769378834033,1.13043865,86374.0,86368.0,0.01157836]
[1769378834291,1.13043865,86374.0,86369.0,0.01157822]
[1769378834449,1.13058038,86375.0,86370.0,0.01157809]
[1769378834793,1.13058038,86375.0,86369.0,0.01157822]
[1769378835229,1e-08,86375.0,86372.0,0.01157782]
[1769378835440,1e-08,86375.0,86374.0,0.40919735]
[1769378836277,1.13043865,86392.0,86374.0,0.40919735]
[1769378836278,1.13043865,86392.0,86384.0,0.01157621]
[1769378836558,1.13043865,86392.0,86385.0,0.01157608]
[1769378836740,1.13043865,86392.0,86387.0,0.01157581]
[1769378836953,1.13043865,86392.0,86386.0,0.01157594]
[1769378836954,1.13043865,86392.0,86385.0,0.01157608]
[1769378837391,1.13043865,86392.0,86384.0,0.01157621]
[1769378837599,1.13043865,86392.0,86385.0,0.01157608]
[1769378838080,1.13043865,86392.0,86377.0,0.42068934]
[1769378838081,1.32772488,86411.0,86394.0,0.01157487]
[1769378838289,1.32772488,86411.0,86391.0,0.06945102]
[1769378838290,1.1139157,86409.0,86392.0,0.01157514]
[1769378838500,1.1139157,86407.0,86393.0,0.01157501]
[1769378838677,1.32772488,86405.0,86394.0,0.01157487]
[1769378839831,1.32772488,86405.0,86396.0,0.0115746]
[1769378840034,1.32772488,86405.0,86387.0,0.24234068]
[1769378840258,0.00014186,86411.0,86385.0,0.01257608]
[1769378840259,0.21380918,86402.0,86388.0,0.04632]
[1769378840481,0.21380918,86398.0,86388.0,0.05789568]
[1769378840726,1.1139157,86397.0,86388.0,0.05789568]
[1769378841120,1.1139157,86397.0,86389.0,0.01157554]
[1769378841357,1.1139157,86397.0,86390.0,0.01157541]
[1769378841614,1.1139157,86397.0,86392.0,0.01157514]
[1769378841990,1.1139157,86410.0,86392.0,0.01157514]
[1769378842188,0.21380918,86407.0,86392.0,0.01157514]
[1769378842447,0.21380918,86405.0,86392.0,0.01157514]
[1769378842574,1.1139157,86402.0,86392.0,0.01157514]
[1769378843199,1.32772488,86402.0,86392.0,0.01157514]
[1769378843434,1.32772488,86402.0,86386.0,0.05787946]
[1769378843607,1.1139157,86391.0,86381.0,0.01157661]
[1769378843810,1.1139157,86391.0,86382.0,0.01157648]
[1769378844012,1.1139157,86391.0,86381.0,0.01157661]
[1769378844252,1.1139157,86391.0,86382.0,0.01157648]
[1769378845162,1.1139157,86391.0,86383.0,0.05789635]
[1769378846375,1.1139157,86391.0,86383.0,0.04632]
[1769378846672,1.1139157,86391.0,86383.0,0.05789635]
[1769378846877,1.1139157,86391.0,86384.0,0.01157621]
[1769378847381,1.1139157,86396.0,86385.0,0.01157608]
[1769378848000,1.1139157,86396.0,86380.0,0.01157675]
[1769378848001,1.32772488,86396.0,86380.0,0.05789675]
[1769378848167,1.32772488,86396.0,86386.0,0.01157594]
[1769378848363,1.32772488,86396.0,86385.0,0.01157608]
[1769378848631,1.32772488,86396.0,86384.0,0.01157621]
[1769378848915,1.32772488,86396.0,86382.0,0.01157648]
[1769378849669,1.30352575,86396.0,86382.0,0.01057538]
[1769378849895,1.29810933,86396.0,86382.0,0.01057538]
[1769378850731,1.29810933,86396.0,86383.0,0.01157635]
[1769378851062,1.29810933,86396.0,86382.0,0.01057538]
[1769378851201,0.01157394,86401.0,86253.0,0.0004]
[1769378851202,1.10404385,86394.0,86377.0,0.0694629]
[1769378851411,0.21380918,86391.0,86378.0,0.01157702]
[1769378851609,1.31785303,86390.0,86381.0,0.01157661]
[1769378852233,1.31785303,86390.0,86380.0,0.01157675]
[1769378852468,0.21380918,86389.0,86379.0,0.01157688]
[1769378852672,1.10404385,86388.0,86380.0,0.01157675]
[1769378853231,1.10404385,86388.0,86379.0,0.01157688]
[1769378853434,1.10404385,86388.0,86378.0,0.01157702]
[1769378853659,1.31460207,86388.0,86376.0,0.01157728]
[1769378853864,1.31460207,86388.0,86373.0,0.05789769]
[1769378854085,0.01157501,86393.0,86375.0,0.01157742]
[1769378854086,0.21055822,86387.0,86375.0,0.01157742]
[1769378854316,1.10404385,86386.0,86377.0,0.01157715]
[1769378854502,1.10404385,86386.0,86373.0,0.04632]
[1769378854877,1.10404385,86386.0,86375.0,0.01157742]
[1769378855639,1.10404385,86386.0,86374.0,0.01157755]
[1769378855815,1.10404385,86386.0,86375.0,0.01157742]
[1769378856220,1.10404385,86386.0,86374.0,0.01157755]
[1769378856420,1.10404385,86386.0,86373.0,0.05789769]
[1769378856835,0.01157487,86394.0,86375.0,0.01157742]
[1769378856836,0.21055822,86385.0,86375.0,0.01157742]
[1769378857025,1.10404385,86384.0,86375.0,0.01157742]
[1769378857629,1.10404385,86384.0,86376.0,0.01157728]
[1769378858445,1.10404385,86384.0,86375.0,0.01157742]
[1769378859604,1.10404385,86384.0,86374.0,0.01157755]
[1769378861818,1.10404385,86384.0,86373.0,0.05789769]
[1769378862208,1.10404385,86384.0,86374.0,0.01157755]
[1769378862407,1.10404385,86384.0,86373.0,0.05789769]
[1769378862408,1.31460207,86384.0,86373.0,0.04632]
[1769378863121,1.31460207,86384.0,86364.0,0.38753686]
[1769378863122,1.10404385,86372.0,86343.0,0.1482]
[1769378863291,0.01,86373.0,86318.0,0.0021]
[1769378863292,1.10404385,86368.0,86354.0,0.06948093]
[1769378863494,1.10404385,86366.0,86354.0,0.01158023]
[1769378863651,1.10404385,86366.0,86357.0,0.01157983]
[1769378863852,1.10404385,86366.0,86356.0,0.01157997]
[1769378864069,1.10404385,86366.0,86355.0,0.0115801]
[1769378864270,1.10404385,86366.0,86348.0,0.23162056]
[1769378864272,0.35139702,86360.0,86346.0,0.00041999]
[1769378864475,0.35139702,86360.0,86341.0,0.18958198]
[1769378864476,1.10592604,86359.0,86341.0,0.17841999]
[1769378864716,1.10592604,86359.0,86342.0,0.01158184]
[1769378864875,1.10592604,86359.0,86343.0,0.01158171]
[1769378865070,1.10592604,86359.0,86344.0,0.05790158]
[1769378866011,1.10592604,86359.0,86344.0,0.04632]
[1769378866237,1.10592604,86359.0,86344.0,0.05790158]
[1769378866424,1.10592604,86359.0,86344.0,0.04632]
[1769378867430,0.0115797,86358.0,86344.0,0.04632]
[1769378867620,1.10592604,86358.0,86344.0,0.04632]
[1769378867840,0.21055822,86359.0,86336.0,0.0002]
[1769378867841,0.01158077,86350.0,86336.0,0.0002]
[1769378867969,0.01158077,86350.0,86336.0,0.00067235]
[1769378867970,0.01,86344.0,86336.0,0.00067235]
[1769378869123,1.17666666,86344.0,86332.0,0.00047235]
[1769378869485,1.18872118,86344.0,86332.0,0.00047235]
[1769378869681,1.1771396,86344.0,86332.0,0.00047235]
[1769378869893,0.21055822,86341.0,86332.0,0.00047235]
[1769378870094,1.16666666,86340.0,86332.0,0.00047235]
[1769378872351,0.21055822,86341.0,86332.0,0.00047235]
[1769378872784,1.16666666,86340.0,86332.0,0.00047235]
[1769378873647,1.00441448,86340.0,86332.0,0.00047235]
[1769378873973,1.00441448,86340.0,86328.0,0.0002]
[1769378874174,0.21055822,86339.0,86328.0,0.0002]
[1769378874403,1.32314082,86338.0,86328.0,0.0002]
[1769378876416,1.1125826,86336.0,86328.0,0.0002]
[1769378877475,1.1125826,86336.0,86328.0,0.0012]
[1769378878069,1.1125826,86336.0,86328.0,0.0002]
[1769378880161,0.21055822,86337.0,86328.0,0.0002]
[1769378880309,0.21055822,86337.0,86330.0,0.01158345]
[1769378880640,1.1125826,86337.0,86331.0,0.01158332]
[1769378880780,1.1125826,86337.0,86328.0,0.01178372]
[1769378880992,1.1125826,86337.0,86329.0,0.01158359]
[1769378881198,1.1125826,86337.0,86328.0,0.01178372]
[1769378881417,1.1125826,86337.0,86328.0,0.0012]
[1769378881818,1.1125826,86337.0,86328.0,0.0002]
[1769378882024,1.1125826,86337.0,86330.0,0.01158345]
[1769378882357,0.17788,86338.0,86329.0,0.05791788]
[1769378882358,0.00047294,86344.0,86340.0,0.01158211]
[1769378882552,0.17788,86352.0,86342.0,0.01158184]
[1769378882892,0.17788,86352.0,86341.0,0.16225218]
[1769378883091,0.17788,86352.0,86340.0,0.01158211]
[1769378883301,0.17788,86352.0,86338.0,0.0777433]
[1769378883302,0.17161757,86358.0,86345.0,0.01158144]
[1769378883518,0.17788,86359.0,86347.0,0.01158117]
[1769378883995,0.17788,86360.0,86346.0,0.01158131]
[1769378884400,1.32986696,86360.0,86345.0,0.01158144]
[1769378884647,1.32986696,86360.0,86344.0,0.16177924]
[1769378884789,0.1715635,86356.0,86339.0,0.01158225]
[1769378884985,1.15198696,86355.0,86339.0,0.01158225]
[1769378885396,1.15198696,86355.0,86346.0,0.001]
[1769378886402,0.91792661,86355.0,86341.0,0.01158198]
[1769378886738,0.91792661,86355.0,86339.0,0.01158225]
[1769378886957,0.91792661,86355.0,86339.0,0.01258225]
[1769378887124,0.1715635,86356.0,86339.0,0.001]
[1769378887125,1.15198696,86354.0,86339.0,0.001]
[1769378887326,1.15198696,86354.0,86340.0,0.01158211]
[1769378887533,0.91257478,86354.0,86341.0,0.001]
[1769378888031,0.91257478,86354.0,86340.0,0.01172373]
[1769378888263,0.1715635,86356.0,86341.0,0.01158198]
[1769378888436,0.1715635,86356.0,86344.0,0.01158158]
[1769378888643,0.1715635,86356.0,86342.0,0.01158184]
[1769378888644,0.1715635,86356.0,86343.0,0.01158171]
[1769378888839,0.1715635,86356.0,86340.0,0.01272373]
[1769378889247,0.1715635,86356.0,86341.0,0.01158198]
[1769378889985,0.17788,86360.0,86346.0,0.01158131]
[1769378890365,0.17788,86360.0,86343.0,0.64683348]
[1769378890547,0.17788,86360.0,86343.0,0.63525177]
[1769378890752,1.50148502,86360.0,86343.0,0.64683348]
[1769378890956,1.50148502,86360.0,86344.0,0.01158158]
[1769378891162,1.50148502,86360.0,86343.0,0.64683348]
[1769378891373,1.50148502,86360.0,86344.0,0.01158158]
[1769378891690,1.50148502,86360.0,86343.0,0.64683348]
[1769378891894,1.50148502,86360.0,86344.0,0.01158158]
[1769378892108,0.34949806,86360.0,86346.0,0.01158131]
[1769378892444,0.34949806,86360.0,86348.0,0.01158104]
[1769378893205,0.34949806,86360.0,86350.0,0.01158077]
[1769378893626,0.34949806,86360.0,86351.0,0.01158064]
[1769378893827,0.34949806,86360.0,86350.0,0.06948404]
[1769378894040,0.34949806,86360.0,86352.0,0.0115805]
[1769378894169,0.0578892,86372.0,86352.0,0.0115805]
[1769378894170,0.17161806,86369.0,86352.0,0.63525177]
[1769378894375,0.17788,86368.0,86353.0,0.01158037]
[1769378894596,0.17788,86368.0,86352.0,0.63525177]
[1769378894805,0.18945836,86368.0,86352.0,0.63525177]
[1769378895011,1.15198696,86367.0,86352.0,0.63525177]
[1769378895433,1.32585389,86367.0,86352.0,0.63525177]
[1769378895612,0.01157863,86366.0,86347.0,0.64683294]
[1769378895812,0.01157903,86363.0,86347.0,0.63525177]
[1769378896349,1.10337752,86361.0,86344.0,0.01158158]
[1769378896563,1.10337752,86361.0,86343.0,0.01158171]
[1769378896564,0.0115801,86355.0,86341.0,0.63525177]
[1769378896733,0.01157997,86356.0,86341.0,0.63525177]
[1769378897452,0.01157997,86356.0,86344.0,0.001]
[1769378897817,0.01158023,86354.0,86344.0,0.001]
[1769378898018,0.01158037,86353.0,86344.0,0.001]
[1769378898217,1.27949337,86353.0,86344.0,0.001]
[1769378898758,0.0115805,86352.0,86344.0,0.001]
[1769378899117,1.29107374,86353.0,86340.0,0.00014162]
[1769378899324,1.27949337,86353.0,86340.0,0.00014162]
[1769378899658,1.27949337,86353.0,86341.0,0.001]
[1769378899887,1.27949337,86353.0,86340.0,0.00014162]
[1769378900104,0.01158104,86348.0,86340.0,0.00014162]
[1769378900315,0.01158104,86348.0,86333.0,0.04632]
[1769378900316,1.10337752,86345.0,86333.0,0.04632]
[1769378900498,0.180614,86342.0,86333.0,0.04632]
[1769378901030,1.10337752,86341.0,86333.0,0.04632]
[1769378902535,1.10337752,86341.0,86333.0,0.001]
[1769378902946,1.10337752,86341.0,86328.0,0.0002]
[1769378903486,1.10337752,86341.0,86333.0,0.001]
[1769378903899,1.10337752,86341.0,86328.0,0.0002]
[1769378904115,1.10337752,86341.0,86328.0,0.0012]
[1769378904906,0.180614,86342.0,86328.0,0.0012]
[1769378905358,0.180614,86342.0,86328.0,0.0002]
[1769378905947,0.180614,86342.0,86333.0,0.001]
[1769378906356,0.180614,86342.0,86328.0,0.0002]
[1769378906760,0.180614,86342.0,86328.0,0.01278372]
[1769378906965,0.180614,86342.0,86328.0,0.0012]
[1769378907192,0.180614,86342.0,86328.0,0.01178372]
[1769378907766,0.180614,86342.0,86328.0,0.0002]
[1769378908182,0.18030139,86342.0,86328.0,0.0002]
[1769378908402,0.18030139,86342.0,86330.0,0.35157638]
[1769378908638,1.28367891,86342.0,86330.0,0.35157638]
[1769378909143,1.28367891,86342.0,86328.0,0.0012]
[1769378909502,1.28367891,86342.0,86328.0,0.0002]
[1769378909837,1.28367891,86342.0,86330.0,0.35157638]
[1769378910040,1.10337752,86340.0,86330.0,0.35157638]
[1769378910246,1.28608422,86340.0,86330.0,0.35157638]
[1769378910448,1.28608422,86340.0,86328.0,0.0002]
[1769378912765,0.1827067,86340.0,86330.0,0.35157638]
[1769378913758,1.09387055,86343.0,86330.0,0.35157638]
[1769378913987,1.09387055,86343.0,86328.0,0.01178372]
[1769378913988,0.17788,86364.0,86344.0,0.63756425]
[1769378914185,1.09387055,86361.0,86344.0,0.63756425]
[1769378914397,0.1737104,86360.0,86345.0,0.01158144]
[1769378914588,0.1737104,86359.0,86345.0,0.01158144]
[1769378914830,1.26758095,86359.0,86344.0,0.01158158]
[1769378915443,1.26758095,86359.0,86345.0,0.01158144]
[1769378916104,1.26758095,86359.0,86346.0,0.01158131]
[1769378916683,1.26758095,86359.0,86341.0,0.01158198]
[1769378916845,1.26758095,86359.0,86342.0,0.01158184]
[1769378917045,1.26758095,86359.0,86344.0,0.01158158]
[1769378917843,1.26758095,86359.0,86346.0,0.01158131]
[1769378918047,1.26758095,86359.0,86345.0,0.01158144]
[1769378918724,1.26758095,86359.0,86347.0,0.01158117]
[1769378919156,1.26758095,86359.0,86350.0,0.01158077]
[1769378919329,1.26758095,86359.0,86349.0,0.36315729]
[1769378919743,0.00602218,86367.0,86352.0,0.0115805]
[1769378920000,0.00602218,86367.0,86358.0,0.0115797]
[1769378920199,0.1737104,86368.0,86356.0,0.01157997]
[1769378920492,1.26758095,86368.0,86356.0,0.01157997]
[1769378920674,1.26758095,86368.0,86355.0,0.0115801]
[1769378921984,1.26758095,86368.0,86356.0,0.01157997]
[1769378922482,1.26758095,86368.0,86357.0,0.01157983]
[1769378923049,1.26758095,86368.0,86359.0,0.01157956]
[1769378923253,1.26758095,86368.0,86358.0,0.0115797]
[1769378923490,1.26758095,86368.0,86359.0,0.01157956]
[1769378923690,1.26758095,86368.0,86358.0,0.0115797]
[1769378924269,1.26758095,86368.0,86355.0,0.0115801]
[1769378924470,1.26758095,86368.0,86357.0,0.01157983]
[1769378925368,0.00602176,86371.0,86360.0,0.01157943]
[1769378925571,0.00616364,86371.0,86362.0,0.01157916]
[1769378925724,0.00014188,86371.0,86360.0,0.06947649]
[1769378925893,0.00014188,86371.0,86362.0,0.01157916]
[1769378926540,0.00014188,86371.0,86361.0,0.0115793]
[1769378926739,0.00014188,86371.0,86362.0,0.01157916]
[1769378926943,0.00014188,86371.0,86360.0,0.01157943]
[1769378927187,0.00014188,86371.0,86362.0,0.01157916]
[1769378927682,0.00014188,86371.0,86361.0,0.0115793]
[1769378928273,0.00014188,86371.0,86362.0,0.01157916]
[1769378928668,0.00014188,86371.0,86363.0,0.01157903]
[1769378929948,0.00014188,86371.0,86357.0,0.23159484]
[1769378929949,0.00602135,86382.0,86374.0,0.01157755]
[1769378930136,0.00602135,86382.0,86372.0,0.01157782]
[1769378930342,1.27882535,86386.0,86372.0,0.01157782]
[1769378930544,0.18720353,86385.0,86374.0,0.01157755]
[1769378930748,1.28107408,86385.0,86373.0,0.01157769]
[1769378930957,1.28107408,86385.0,86374.0,0.01157755]
[1769378931381,1.28107408,86385.0,86375.0,0.01157742]
[1769378931585,1.28107408,86385.0,86371.0,0.05788849]
[1769378931586,1.28107408,86385.0,86369.0,0.05789064]
[1769378931762,1.28107408,86385.0,86372.0,0.01157782]
[1769378932724,1.28107408,86385.0,86373.0,0.01157769]
[1769378932926,1.28107408,86385.0,86372.0,0.01157782]
[1769378934006,1.28107408,86385.0,86373.0,0.06946569]
[1769378934202,1.28107408,86385.0,86377.0,0.01157715]
[1769378934585,1.28107408,86385.0,86376.0,0.01157728]
[1769378934787,1.28107408,86385.0,86375.0,0.06946423]
[1769378934788,0.000108,86386.0,86378.0,0.01157702]
[1769378934988,0.000108,86386.0,86377.0,0.01157715]
[1769378935198,0.000108,86386.0,86378.0,0.01157702]
[1769378935400,0.000108,86386.0,86380.0,0.01157675]
[1769378935607,0.000108,86386.0,86379.0,0.01157688]
[1769378936126,0.000108,86386.0,86378.0,0.01157702]
[1769378936331,0.000108,86386.0,86380.0,0.01157675]
[1769378936726,0.000108,86386.0,86378.0,0.01157702]
[1769378936933,0.000108,86386.0,86379.0,0.01157688]
[1769378937484,0.000108,86386.0,86380.0,0.01157675]
[1769378937934,0.000108,86386.0,86379.0,0.01157688]
[1769378938188,0.1961991,86384.0,86372.0,0.01157782]
[1769378938419,0.000108,86386.0,86367.0,0.01157849]
[1769378938420,1.09387055,86381.0,86367.0,0.01157849]
[1769378938620,1.09387055,86377.0,86367.0,0.01157849]
[1769378939208,1.09387055,86377.0,86361.0,0.0115793]
[1769378939408,1.09387055,86375.0,86364.0,0.01157889]
[1769378939898,1.09387055,86375.0,86361.0,0.06961756]
[1769378939899,0.19844786,86374.0,86361.0,0.00014188]
[1769378940110,1.29231841,86363.0,86350.0,0.06948407]
[1769378940327,1.29231841,86363.0,86351.0,0.01158064]
[1769378940549,1.29231841,86363.0,86352.0,0.0115805]
[1769378941026,1.09387055,86363.0,86349.0,0.0002448]
[1769378941232,0.20069699,86358.0,86349.0,0.0002448]
[1769378941440,0.20069699,86356.0,86351.0,0.001]
[1769378941648,0.00014183,86358.0,86349.0,0.0002448]
[1769378941649,0.20069699,86352.0,86349.0,0.0002448]
[1769378941793,1.29456754,86351.0,86349.0,0.0002448]
[1769378945424,0.00014183,86358.0,86349.0,0.0002448]
[1769378945599,1.31086135,86357.0,86349.0,0.0002448]
[1769378946006,1.11016436,86355.0,86349.0,0.0002448]
[1769378946321,1.31086135,86355.0,86349.0,0.0002448]
[1769378946731,1.13172748,86355.0,86349.0,0.0002448]
[1769378946953,1.13172748,86355.0,86336.0,0.23165086]
[1769378946954,1.11016436,86348.0,86334.0,0.01158292]
[1769378947160,1.30861245,86348.0,86335.0,0.01158278]
[1769378947555,1.30861245,86348.0,86334.0,0.01158292]
[1769378947958,1.30861245,86348.0,86335.0,0.01158278]
[1769378948162,1.30861245,86348.0,86334.0,0.01158292]
[1769378948410,1.30861245,86348.0,86335.0,0.01158278]
[1769378948557,1.30861245,86348.0,86334.0,0.01158292]
[1769378948915,1.30861245,86348.0,86335.0,0.01158278]
[1769378949303,1.30861245,86348.0,86334.0,0.01158292]
[1769378949528,1.30861245,86348.0,86335.0,0.01158278]
[1769378950732,1.08376656,86348.0,86331.0,0.01158332]
[1769378950936,1.08376656,86348.0,86332.0,0.01606826]
[1769378951158,1.08376656,86348.0,86333.0,0.01158305]
[1769378951588,1.08376656,86348.0,86332.0,0.01606826]
[1769378951784,0.19844809,86348.0,86334.0,1.05244796]
[1769378952014,0.19844809,86348.0,86335.0,0.01158278]
[1769378952216,0.19844809,86348.0,86338.0,0.0011764]
[1769378952567,1.30861245,86348.0,86338.0,0.0011764]
[1769378952774,0.19844809,86348.0,86339.0,0.01158225]
[1769378952973,0.19844809,86348.0,86338.0,0.0001764]
[1769378953198,0.19844809,86348.0,86338.0,0.0011764]
[1769378953600,0.19844809,86348.0,86338.0,0.0001764]
[1769378955070,0.19844809,86348.0,86339.0,0.001]
[1769378955467,0.19844809,86348.0,86338.0,0.0001764]
[1769378955873,0.19844809,86348.0,86338.0,0.0011764]
[1769378956519,0.19844809,86348.0,86338.0,0.01275878]
[1769378956953,0.01157903,86363.0,86338.0,0.01275878]
[1769378956954,0.18945159,86376.0,86364.0,0.01157889]
[1769378957214,0.17784,86382.0,86363.0,0.01157903]
[1769378957215,0.18945159,86373.0,86363.0,0.01157903]
[1769378957441,1.1344405,86373.0,86364.0,0.05789412]
[1769378957687,1.32389209,86373.0,86365.0,0.01157876]
[1769378957905,1.11339549,86373.0,86361.0,0.0115793]
[1769378958114,1.11339549,86373.0,86362.0,0.01157916]
[1769378958540,1.30281318,86373.0,86360.0,0.35157638]
[1769378958742,0.19877991,86372.0,86354.0,0.01158023]
[1769378959008,0.18941769,86373.0,86353.0,0.01158037]
[1769378959009,0.18720209,86370.0,86353.0,0.01158037]
[1769378959679,0.18720209,86370.0,86350.0,0.40947995]
[1769378959680,1.1344405,86367.0,86350.0,0.36315715]
[1769378959895,1.32164259,86365.0,86351.0,0.01158064]
[1769378960128,1.32164259,86365.0,86354.0,0.001]
[1769378961193,1.32164259,86365.0,86350.0,0.35157638]
[1769378961540,1.32164259,86365.0,86350.0,0.36415715]
[1769378961740,1.32164259,86365.0,86350.0,0.35257638]
[1769378961977,1.32164259,86365.0,86350.0,0.36315715]
[1769378962192,1.32164259,86365.0,86350.0,0.35157638]
[1769378963085,1.32164259,86365.0,86350.0,0.35257638]
[1769378963736,1.32164259,86365.0,86350.0,0.3523918]
[1769378964261,0.18720209,86365.0,86350.0,0.3523918]
[1769378964468,0.18720209,86365.0,86350.0,0.36397257]
[1769378965236,0.05788997,86371.0,86350.0,0.36397257]
[1769378965237,1.49048624,86373.0,86355.0,0.0115801]
[1769378965450,1.49048624,86373.0,86356.0,0.01157997]
[1769378965657,1.49048624,86373.0,86360.0,0.36297123]
[1769378965863,0.17784,86372.0,86362.0,0.01157916]
[1769378966075,0.17784,86372.0,86364.0,0.01157889]
[1769378966581,0.17820574,86373.0,86362.0,0.01157916]
[1769378966791,0.35604574,86373.0,86360.0,0.36297123]
[1769378966976,0.17820574,86373.0,86362.0,0.05789524]
[1769378967275,0.17784,86373.0,86364.0,0.01157889]
[1769378967503,0.17784,86374.0,86364.0,0.01157889]
[1769378968125,0.17784,86374.0,86363.0,0.01157903]
[1769378968331,0.17784,86374.0,86360.0,0.36297123]
[1769378968536,0.17784,86374.0,86361.0,0.0115793]
[1769378969689,1.1344405,86373.0,86360.0,0.3513918]
[1769378970519,1.1344405,86373.0,86360.0,0.36297123]
[1769378971029,1.1344405,86373.0,86362.0,0.01157916]
[1769378971445,1.1344405,86373.0,86360.0,0.36297123]
[1769378971681,1.1344405,86373.0,86361.0,0.0115793]
[1769378971807,1.1344405,86373.0,86360.0,0.36297123]
[1769378972009,1.1344405,86373.0,86361.0,0.0115793]
[1769378972209,1.1344405,86373.0,86360.0,0.36297123]
[1769378972818,1.1344405,86373.0,86361.0,0.0115793]
[1769378973115,1.1344405,86373.0,86362.0,0.01157916]
[1769378973968,0.17820569,86374.0,86362.0,0.01157916]
[1769378974601,0.17820569,86374.0,86364.0,0.01157889]
[1769378976021,0.1780164,86375.0,86368.0,0.01157836]
[1769378976022,0.0001764,86375.0,86368.0,0.01157836]
[1769378976263,0.11298922,86383.0,86372.0,0.01157782]
[1769378976462,0.11298922,86383.0,86371.0,0.01157796]
[1769378976463,0.00014186,86383.0,86378.0,0.01157702]
[1769378976670,0.00014186,86383.0,86378.0,1.1681174]
[1769378977048,0.00014186,86383.0,86379.0,0.01157688]
[1769378977250,0.00014186,86383.0,86375.0,0.01157742]
[1769378977481,0.00014186,86383.0,86377.0,0.01157715]
[1769378977675,0.00014186,86383.0,86376.0,0.01157728]
[1769378978315,0.00014186,86383.0,86377.0,0.01157715]
[1769378978641,0.00014186,86383.0,86375.0,0.01157742]
[1769378978850,0.00014186,86383.0,86377.0,0.05788577]
[1769378979222,0.00014186,86383.0,86379.0,0.01157688]
[1769378979410,0.00014186,86383.0,86378.0,0.01157702]
[1769378980713,0.00014186,86383.0,86379.0,0.01157688]
[1769378980916,0.00014186,86383.0,86378.0,0.01157702]
[1769378981142,0.00014186,86383.0,86376.0,0.01157728]
[1769378981302,0.00014186,86383.0,86378.0,0.01157702]
[1769378981953,1.00993602,86392.0,86378.0,0.01157702]
[1769378982183,0.07376654,86391.0,86378.0,0.01257702]
[1769378982655,0.07376654,86389.0,86378.0,0.001]
[1769378982876,0.07376654,86388.0,86378.0,0.001]
[1769378983111,0.07376654,86386.0,86378.0,0.001]
[1769378983965,0.07376654,86386.0,86374.0,0.01157755]
[1769378984190,0.07376654,86386.0,86378.0,0.001]
[1769378984789,0.07376654,86386.0,86376.0,0.01157728]
[1769378985187,1.12719361,86389.0,86376.0,0.01157728]
[1769378985439,0.0002277,86390.0,86378.0,0.01157702]
[1769378985646,0.0002277,86390.0,86382.0,0.01157648]
[1769378985972,0.00143593,86398.0,86382.0,0.01157648]
[1769378985973,1.13876714,86404.0,86383.0,1.16392663]
[1769378986181,0.0130096,86403.0,86385.0,1.15654038]
[1769378986369,0.07395124,86401.0,86385.0,1.15654038]
[1769378986593,0.07395124,86401.0,86394.0,0.01157487]
[1769378986796,0.0001847,86401.0,86393.0,0.01157501]
[1769378986994,0.0001847,86401.0,86395.0,0.05787363]
[1769378987206,0.0001847,86401.0,86393.0,0.01157501]
[1769378987411,0.0001847,86401.0,86394.0,0.05787391]
[1769378987579,0.0001847,86401.0,86395.0,0.01157474]
[1769378989043,0.0001847,86401.0,86396.0,0.0115746]
[1769378989223,0.0001847,86401.0,86389.0,0.01157554]
[1769378989423,0.0001847,86401.0,86390.0,0.36296721]
[1769378989580,0.0001847,86401.0,86391.0,0.01157527]
[1769378990889,0.0001847,86401.0,86393.0,0.01157501]
[1769378991371,0.0001847,86401.0,86391.0,0.01157527]
[1769378991594,0.0001847,86401.0,86392.0,0.01157514]
[1769378992702,0.0001847,86401.0,86393.0,0.01157501]
[1769378992819,0.0001847,86401.0,86394.0,0.01157487]
[1769378994704,0.0001847,86401.0,86395.0,0.01157474]
[1769378995140,0.99262046,86404.0,86395.0,0.01157474]
[1769378995317,0.99262046,86404.0,86392.0,0.01157514]
[1769378995661,0.99262046,86404.0,86393.0,0.01157501]
[1769378996622,0.07376654,86408.0,86393.0,0.01157501]
[1769378996821,1.30499361,86411.0,86396.0,0.0115746]
[1769378997032,1.30499361,86411.0,86397.0,0.01157447]
[1769378997398,1.37876015,86411.0,86397.0,0.01157447]
[1769378997597,0.07395124,86412.0,86400.0,0.3513918]
[1769378997810,0.07395124,86412.0,86406.0,0.01157327]
[1769378997811,0.0001847,86412.0,86406.0,0.01157327]
[1769378998017,0.0001847,86412.0,86402.0,0.06944225]
[1769378998233,0.0001847,86412.0,86405.0,0.0115734]
[1769378998817,0.0001847,86412.0,86400.0,0.36296587]
[1769378999029,0.0001847,86412.0,86403.0,0.01157367]
[1769378999669,0.0001847,86412.0,86402.0,1.16811418]
[1769378999873,0.0001847,86412.0,86401.0,0.03771699]
[1769379000088,0.0001847,86412.0,86404.0,0.01157353]
[1769379000656,0.0001847,86412.0,86405.0,0.0115734]
[1769379000859,0.0001847,86412.0,86405.0,1.15654038]
[1769379001256,0.0001847,86412.0,86405.0,1.16811378]
[1769379001456,0.0001847,86412.0,86406.0,0.06943914]
[1769379001680,0.0001847,86423.0,86413.0,0.01157233]
[1769379001880,0.0001847,86423.0,86414.0,0.01157219]
[1769379002093,0.0001847,86423.0,86413.0,0.01157233]
[1769379002502,0.0001847,86423.0,86412.0,0.01157246]
[1769379002909,0.00014181,86423.0,86412.0,0.01157246]
[1769379003321,0.00014181,86423.0,86411.0,1.15654038]
[1769379003960,0.00014181,86423.0,86411.0,1.16811298]
[1769379004387,0.00014181,86423.0,86411.0,1.15654038]
[1769379004931,0.00014181,86423.0,86411.0,1.16811298]
[1769379005070,0.00014181,86423.0,86415.0,0.01157206]
[1769379005270,0.00014181,86423.0,86412.0,0.01157246]
[1769379005590,0.00014181,86423.0,86413.0,0.01157233]
[1769379005908,0.00014181,86423.0,86412.0,0.01157246]
[1769379006074,0.00014181,86423.0,86413.0,0.01157233]
[1769379006458,0.00014181,86423.0,86412.0,0.00602258]
[1769379006726,0.00014181,86423.0,86413.0,0.01157233]
[1769379007323,0.00014181,86423.0,86411.0,0.0115726]
[1769379007531,0.00014181,86423.0,86412.0,0.01157246]
[1769379008159,0.00014181,86423.0,86410.0,0.3513918]
[1769379008602,0.00014181,86423.0,86409.0,0.17776]
[1769379008805,1.07359987,86422.0,86410.0,0.3513918]
[1769379015766,1.1235708,86422.0,86410.0,0.3513918]